bitfinex-derivatives/quotes_ETHF0:USTF0_20251006
["timestamp","ask_amount","ask_price","bid_price","bid_amount"]
[1759781268080,0.421,4734.6,4734.5,4.2739]
[1759781268273,0.421,4734.6,4734.5,4.0619]
[1759781268474,0.421,4734.6,4734.5,4.2739]
[1759781268672,0.94979,4735.6,4734.5,4.2739]
[1759781268673,0.4166,4735.1,4735.0,1.25855]
[1759781268880,0.724,4735.1,4734.8,1.12118866]
[1759781269079,0.4166,4734.9,4734.8,0.754]
[1759781269276,0.3074,4734.7,4734.6,1.12118866]
[1759781269472,1.10401,4734.3,4734.0,4.32898866]
[1759781269676,1.10401,4734.3,4734.2,0.212]
[1759781269876,6.10401,4734.3,4734.2,0.212]
[1759781271381,6.10401,4734.3,4734.2,0.4285]
[1759781271777,6.10401,4734.3,4734.2,0.7485]
[1759781271978,6.10401,4734.3,4734.2,0.212]
[1759781272381,5.79661,4734.3,4733.8,0.32]
[1759781272580,0.724,4734.2,4733.9,0.38004]
[1759781272884,0.724,4734.2,4734.1,0.21357406]
[1759781275777,0.724,4734.2,4734.1,0.75007406]
[1759781275984,0.724,4734.2,4734.1,0.21357406]
[1759781276988,0.724,4734.2,4734.1,0.00157406]
[1759781277190,0.724,4734.2,4734.1,0.21357406]
[1759781277483,0.724,4734.2,4734.1,0.00157406]
[1759781277684,0.724,4734.2,4734.1,0.21357406]
[1759781277881,5.724,4734.2,4734.1,0.21357406]
[1759781278485,0.4166,4733.1,4733.0,0.6611]
[1759781278788,1.10409,4733.4,4733.3,0.91659]
[1759781279386,0.4166,4733.0,4732.9,3.5278]
[1759781279590,0.724,4733.0,4732.9,0.53398447]
[1759781279787,0.2035,4733.0,4732.9,0.75598447]
[1759781279985,1.10409,4733.3,4733.2,0.91659]
[1759781281086,1.10409,4733.3,4733.2,0.59209]
[1759781281291,1.10409,4733.3,4733.2,1.12859]
[1759781281992,0.724,4733.0,4732.9,0.91860447]
[1759781282191,0.724,4733.0,4732.9,1.13060447]
[1759781282593,0.4166,4733.0,4732.9,1.34810447]
[1759781282890,0.4166,4733.0,4732.9,1.13610447]
[1759781283094,0.4166,4733.0,4732.9,1.34810447]
[1759781283887,3.2078,4733.7,4733.6,0.2165]
[1759781284093,0.724,4733.4,4733.3,0.91659]
[1759781284288,0.4166,4733.4,4733.3,1.34609]
[1759781284490,0.2035,4733.8,4733.7,0.754]
[1759781284688,0.2035,4733.8,4733.7,0.966]
[1759781285096,0.4166,4733.8,4733.7,0.966]
[1759781285488,0.724,4733.8,4733.7,0.7485]
[1759781287991,0.38004,4734.0,4733.8,0.38005]
[1759781288192,0.58353,4734.1,4734.0,0.8786]
[1759781288495,0.58352,4734.1,4734.0,0.8786]
[1759781288691,0.79662,4734.1,4734.0,0.8786]
[1759781289097,1.10402,4734.1,4734.0,0.8786]
[1759781289694,0.2035,4734.1,4734.0,0.8786]
[1759781289893,0.2035,4734.1,4734.0,1.25863]
[1759781290083,0.2035,4734.1,4734.0,1.47063]
[1759781290285,0.58352,4734.1,4734.0,1.47063]
[1759781290483,0.79662,4734.1,4734.0,1.47063]
[1759781291795,0.2035,4734.3,4734.2,1.13401]
[1759781292495,3.2078,4734.4,4734.2,1.13401]
[1759781292496,3.5878,4734.4,4734.3,0.81401]
[1759781292688,4.3118,4734.4,4734.3,0.5365]
[1759781293493,4.3118,4734.4,4734.3,0.7485]
[1759781293796,4.3118,4734.4,4734.3,0.966]
[1759781294388,3.6244,4734.4,4734.3,1.34601]
[1759781294591,3.4113,4734.4,4734.3,1.34601]
[1759781294796,0.2035,4734.4,4734.3,1.34601]
[1759781296300,0.5835,4734.4,4734.3,1.34601]
[1759781297693,3.2078,4734.9,4734.3,0.966]
[1759781297994,3.2078,4734.9,4734.8,1.13397]
[1759781297995,0.37996,4734.9,4734.8,1.13397]
[1759781298195,0.37996,4734.9,4734.8,1.34597]
[1759781298797,0.58345,4735.1,4735.0,1.25215]
[1759781299387,0.37992,4735.5,4735.4,1.12021]
[1759781299597,0.2026,4735.7,4735.6,1.1202]
[1759781300396,0.2026,4735.7,4735.6,0.7403]
[1759781300695,0.4209,4735.7,4735.6,0.7403]
[1759781303401,0.3799,4735.8,4735.6,0.4229]
[1759781303701,0.3799,4735.8,4735.7,0.7403]
[1759781303894,0.5825,4735.8,4735.7,0.7403]
[1759781304499,0.8008,4735.8,4735.7,0.7403]
[1759781304800,1.1223,4735.8,4735.7,0.7403]
[1759781304991,1.1223,4735.8,4735.7,0.9523]
[1759781306898,1.1223,4735.8,4735.5,0.1319]
[1759781306899,0.5398,4735.8,4735.3,0.3174]
[1759781307098,3.2078,4735.5,4735.1,0.37994]
[1759781307305,3.58772,4735.5,4735.4,0.7403]
[1759781307601,0.37992,4735.5,4735.4,0.7403]
[1759781308804,0.58252,4735.5,4735.4,0.7403]
[1759781309099,0.00273608,4736.1,4736.0,0.4493]
[1759781309402,0.00273608,4736.1,4736.0,1.0842]
[1759781309997,0.00273608,4736.1,4736.0,0.8722]
[1759781310201,0.00273608,4736.1,4736.0,1.0842]
[1759781310402,0.00273608,4736.1,4736.0,0.8722]
[1759781311092,0.00273608,4736.1,4736.0,1.0842]
[1759781311297,0.42363608,4736.1,4736.0,0.8722]
[1759781311505,0.42363608,4736.1,4736.0,1.0842]
[1759781312500,0.20533608,4736.1,4736.0,1.0842]
[1759781312694,0.20533608,4736.1,4736.0,0.8722]
[1759781312899,1.01389,4737.0,4736.0,0.8722]
[1759781312900,0.37978,4737.2,4737.1,0.3174]
[1759781313199,0.37978,4737.2,4736.5,0.1319]
[1759781313200,0.2183,4736.7,4736.6,0.7403]
[1759781313396,0.4209,4736.7,4736.6,0.9523]
[1759781313598,3.4104,4737.4,4737.3,0.2146]
[1759781313898,4.01033425,4737.4,4737.3,0.95399484]
[1759781314097,3.41227425,4737.4,4737.3,0.95399484]
[1759781314297,3.20967425,4737.4,4737.3,0.95399484]
[1759781314906,3.21067425,4737.4,4737.3,0.95399484]
[1759781315495,3.41327425,4737.4,4737.3,0.95399484]
[1759781315907,0.20547425,4737.4,4737.3,0.74199484]
[1759781316107,0.73607425,4737.4,4737.3,0.74199484]
[1759781316406,3.94387425,4737.4,4737.3,0.74569484]
[1759781317109,3.94387425,4737.4,4737.3,0.31909484]
[1759781317404,3.94387425,4737.4,4737.3,0.00169484]
[1759781317798,8.94387425,4737.4,4737.3,0.00169484]
[1759781317995,8.94387425,4737.4,4737.3,0.21369484]
[1759781319703,1.12002,4736.6,4736.5,0.3252]
[1759781319897,4.00892,4736.6,4736.5,1.0782]
[1759781320603,4.00892,4736.6,4736.5,1.08091314]
[1759781321000,1.12002,4736.6,4736.5,1.08091314]
[1759781321608,3.2078,4737.1,4737.0,0.4088]
[1759781321806,4.00888,4737.1,4737.0,0.8662]
[1759781322007,4.32778,4737.1,4737.0,0.6578]
[1759781322710,4.32778,4737.1,4737.0,0.5372]
[1759781323208,4.32778,4737.1,4737.0,0.7376]
[1759781323808,0.37982,4736.6,4736.5,0.13491314]
[1759781324002,1.12002,4736.6,4736.5,0.20311314]
[1759781324305,1.12002,4736.6,4736.5,0.75571314]
[1759781324306,0.80112,4736.6,4736.5,0.75571314]
[1759781324511,4.32782,4736.6,4736.5,0.212]
[1759781324814,0.90835,4736.4,4736.3,0.37985]
[1759781325110,1.12005,4736.4,4736.3,0.59185]
[1759781325612,1.12005,4736.4,4736.3,0.59420916]
[1759781327006,1.12005,4736.4,4735.4,1.12118866]
[1759781327007,0.8711,4735.5,4735.4,1.12118866]
[1759781327208,4.0789,4735.5,4735.4,0.212]
[1759781328008,0.4368,4735.0,4734.8,32.939]
[1759781328207,0.3059,4734.9,4734.8,0.38214074]
[1759781328717,0.3059,4734.9,4734.8,33.53315074]
[1759781329321,0.5124,4734.9,4734.8,0.00218074]
[1759781329521,0.7331,4734.9,4734.8,0.21418074]
[1759781329721,0.7331,4734.9,4734.8,0.00218074]
[1759781329921,0.7331,4734.9,4734.8,0.21418074]
[1759781330620,0.7331,4734.9,4734.8,0.00218074]
[1759781331016,0.7331,4734.9,4734.8,0.21418074]
[1759781332622,0.7331,4734.9,4734.8,0.00218074]
[1759781332823,0.7331,4734.9,4734.8,0.21418074]
[1759781334317,0.7331,4734.9,4733.4,0.95021]
[1759781334318,0.7331,4733.9,4733.8,0.38004]
[1759781334523,0.7331,4733.9,4733.8,0.59204]
[1759781335418,0.7352644,4733.9,4733.8,0.59359587]
[1759781335613,0.3080644,4733.9,4733.8,0.59359587]
[1759781335818,0.0021644,4733.9,4733.8,5.59359587]
[1759781336413,0.3080644,4733.9,4733.8,5.59359587]
[1759781337420,0.3080644,4733.9,4733.8,5.38159587]
[1759781337623,0.3080644,4733.9,4733.8,5.59359587]
[1759781339926,0.5145644,4733.9,4733.8,5.59359587]
[1759781340124,0.5145644,4733.9,4733.8,0.38159587]
[1759781340431,0.5145644,4733.9,4733.8,0.59359587]
[1759781341430,0.3080644,4733.9,4733.8,0.59359587]
[1759781342325,0.1309,4734.5,4733.9,0.95011]
[1759781342630,0.3059,4734.8,4734.7,0.37998]
[1759781342832,0.3059,4734.8,4734.7,0.59198]
[1759781343127,0.1309,4735.0,4734.7,0.59198]
[1759781343327,0.30838141,4735.0,4734.9,0.37996]
[1759781343625,0.43928141,4735.0,4734.9,0.37996]
[1759781344626,0.43928141,4735.0,4734.9,0.59196]
[1759781346022,0.00248141,4735.0,4734.9,0.59196]
[1759781346622,0.00248141,4735.0,4734.9,5.59196]
[1759781348620,0.86648141,4735.0,4734.9,5.37996]
[1759781348826,0.86648141,4735.0,4734.9,33.53896]
[1759781349129,0.86648141,4735.0,4734.9,0.37996]
[1759781349426,0.64578141,4735.0,4734.9,33.53796]
[1759781349734,0.43928141,4735.0,4734.9,33.53796]
[1759781350030,0.43928141,4735.0,4734.9,33.53696]
[1759781350227,0.3374,4735.5,4735.4,0.37992]
[1759781350426,0.5581,4735.5,4735.4,33.53692]
[1759781350832,0.864,4735.5,4735.4,33.53692]
[1759781351226,0.86642356,4735.5,4735.4,33.53692]
[1759781351428,0.86642356,4735.5,4735.4,0.37992]
[1759781351730,0.86642356,4735.5,4735.4,33.53692]
[1759781351935,0.43922356,4735.5,4735.4,33.53692]
[1759781355228,0.43922356,4735.5,4735.4,0.37992]
[1759781355229,0.64572356,4735.5,4735.4,0.37992]
[1759781355536,0.64572356,4735.5,4735.4,33.53592]
[1759781355927,0.00242356,4735.5,4735.4,34.65474638]
[1759781356136,0.43922356,4735.5,4735.4,34.65584641]
[1759781356435,0.64572356,4735.5,4735.4,34.65484641]
[1759781356623,0.43922356,4735.5,4735.4,34.65484641]
[1759781357728,0.00242356,4735.5,4735.4,1.49984641]
[1759781358035,0.43922356,4735.5,4735.4,34.65484641]
[1759781360340,0.00242356,4735.5,4735.4,34.65484641]
[1759781360640,0.439,4736.5,4736.4,0.37984]
[1759781360938,0.439,4736.5,4736.4,0.59184]
[1759781361243,0.6553,4736.5,4736.4,0.59184]
[1759781361741,0.0018936,4736.5,4736.4,0.59184]
[1759781361935,0.0018936,4736.5,4736.4,5.59184]
[1759781362232,0.0018936,4736.5,4736.4,47.66649769]
[1759781362739,0.0018936,4736.5,4736.4,5.59184]
[1759781363035,0.0018936,4736.5,4736.4,5.74412067]
[1759781363233,0.3301,4737.9,4736.9,0.94949]
[1759781363536,0.3301,4737.9,4737.3,3.58757]
[1759781363739,0.4322,4737.4,4737.3,33.153]
[1759781363943,0.2163,4736.8,4736.7,1.11692374]
[1759781364139,0.2163,4736.8,4736.7,33.5333745]
[1759781364334,0.52669288,4736.8,4736.7,33.5333745]
[1759781365335,0.31039288,4736.8,4736.7,33.5333745]
[1759781365942,0.31039288,4736.8,4736.7,0.3813745]
[1759781366138,0.74159288,4736.8,4736.7,0.0015545]
[1759781366345,0.74159288,4736.8,4736.7,0.2135545]
[1759781367641,5.74159288,4736.8,4736.7,0.0015545]
[1759781367832,5.74159288,4736.8,4736.7,0.2135545]
[1759781368733,1.12140288,4736.8,4736.7,0.0015545]
[1759781368936,1.12140288,4736.8,4735.2,0.94983]
[1759781368937,0.4312,4735.8,4735.6,4.32472374]
[1759781369139,0.126,4735.5,4735.4,0.37991]
[1759781369338,0.8653,4735.5,4735.4,0.59191]
[1759781369540,0.8653,4735.5,4735.1,1.49686374]
[1759781369846,0.8653,4735.0,4734.9,0.37996]
[1759781370145,0.8653,4735.0,4734.9,0.593841]
[1759781370346,0.8653,4735.0,4734.9,0.001881]
[1759781370552,0.8653,4735.0,4734.9,0.213881]
[1759781371948,0.8653,4735.0,4734.9,0.001881]
[1759781372439,0.8653,4735.0,4734.9,0.213881]
[1759781373456,0.8653,4735.0,4734.9,0.001881]
[1759781373646,0.8653,4735.0,4734.9,0.213881]
[1759781374046,1.24525,4735.0,4734.9,0.001881]
[1759781374349,1.24525,4735.0,4734.9,0.213881]
[1759781374857,1.24525,4735.0,4734.9,0.001881]
[1759781375150,0.8653,4735.0,4734.9,0.213881]
[1759781376344,0.6504,4735.0,4734.9,0.213881]
[1759781377150,0.4341,4735.0,4734.9,0.213881]
[1759781377542,0.4351,4735.0,4734.9,0.213881]
[1759781378341,0.001,4735.0,4734.9,0.213881]
[1759781378547,0.4343,4735.0,4734.9,0.213881]
[1759781378743,0.6521,4735.0,4734.9,0.213881]
[1759781379142,0.8667,4735.0,4734.9,0.213881]
[1759781381752,0.8667,4735.0,4734.9,0.001881]
[1759781382152,0.8667,4735.0,4734.9,0.213881]
[1759781382550,0.4343,4735.0,4734.9,0.213881]
[1759781382748,0.8667,4735.0,4734.9,0.213881]
[1759781383649,0.8667,4735.0,4734.9,0.001881]
[1759781383851,0.8667,4735.0,4734.9,0.213881]
[1759781386157,0.8667,4735.0,4734.9,0.001881]
[1759781386358,0.8667,4735.0,4734.9,0.213881]
[1759781387954,0.4343,4735.0,4734.9,0.213881]
[1759781388153,0.6521,4735.0,4734.9,0.213881]
[1759781388857,0.4343,4735.0,4734.9,0.213881]
[1759781390350,0.5494,4735.5,4735.4,0.2149]
[1759781390552,0.5494,4735.5,4735.4,0.80682]
[1759781390753,0.5494,4735.5,4735.4,1.02592]
[1759781391863,0.5494,4736.0,4735.9,0.59478]
[1759781392062,0.5494,4736.0,4735.9,0.80678]
[1759781392263,0.8792,4736.0,4735.9,0.80678]
[1759781392460,0.8792,4736.0,4735.9,0.59478]
[1759781392658,0.8792,4736.0,4735.9,0.80678]
[1759781393770,0.8792,4736.0,4735.9,0.59188]
[1759781395767,0.5477,4735.5,4735.4,0.37992]
[1759781395971,0.8775,4735.5,4735.4,0.59192]
[1759781397374,0.8775,4735.5,4735.4,0.37992]
[1759781397568,0.8775,4735.5,4735.4,0.59192]
[1759781399474,0.8775,4735.5,4735.4,0.37992]
[1759781399675,0.8775,4735.5,4735.4,0.59192]
[1759781400073,0.8775,4735.5,4735.4,0.37992]
[1759781400273,0.8775,4735.5,4735.4,0.212]
[1759781400274,0.5477,4735.5,4735.4,0.212]
[1759781400575,0.5477,4735.0,4734.9,3.589641]
[1759781400764,0.86350377,4735.0,4734.9,36.957541]
[1759781400962,0.86350377,4735.0,4734.9,37.268741]
[1759781401162,0.86350377,4735.0,4734.9,0.001881]
[1759781401371,9.45125377,4735.0,4734.9,0.001881]
[1759781401575,9.45125377,4735.0,4734.9,0.213881]
[1759781401877,9.45125377,4735.0,4734.9,0.001881]
[1759781402076,9.45125377,4735.0,4733.5,1.03569]
[1759781402077,0.7532,4734.1,4734.0,0.38003]
[1759781402264,0.7532,4734.1,4734.0,0.121]
[1759781403072,0.7532,4734.1,4734.0,0.12371853]
[1759781403379,0.7532,4734.1,4734.0,0.86891853]
[1759781403569,0.7532,4734.1,4734.0,0.33861853]
[1759781403768,0.7532,4734.1,4734.0,0.21471853]
[1759781404374,0.7532,4734.1,4734.0,0.00271853]
[1759781404676,0.7532,4734.1,4734.0,0.42961853]
[1759781405173,0.4234,4734.5,4734.4,1.1252]
[1759781405479,0.7532,4734.5,4734.4,1.3372]
[1759781405872,0.8775,4734.5,4734.4,0.592]
[1759781406179,0.8775,4734.5,4734.4,0.212]
[1759781406379,4.46529,4734.5,4734.4,0.212]
[1759781406774,0.4234,4734.1,4734.0,0.00271853]
[1759781407078,0.7532,4734.1,4734.0,0.21471853]
[1759781407273,0.7532,4734.1,4734.0,0.00271853]
[1759781407578,0.7532,4734.1,4734.0,0.21471853]
[1759781408471,0.7532,4734.1,4734.0,0.00271853]
[1759781408671,0.7532,4734.1,4734.0,0.21471853]
[1759781409780,0.7532,4734.1,4734.0,0.42961853]
[1759781410374,0.7532,4734.1,4734.0,0.00271853]
[1759781410574,0.7532,4734.1,4734.0,0.21471853]
[1759781411481,0.7532,4734.1,4734.0,0.00271853]
[1759781411678,0.7532,4733.4,4733.3,0.7452]
[1759781411882,0.7532,4733.4,4733.3,0.9572]
[1759781412576,0.75548035,4733.4,4733.3,0.95969747]
[1759781413773,0.75548035,4733.4,4733.3,0.74769747]
[1759781413973,0.75548035,4733.4,4733.3,0.95969747]
[1759781414177,0.75548035,4733.4,4733.3,0.00249747]
[1759781414376,0.00228035,4733.4,4733.3,0.95969747]
[1759781414585,0.00228035,4733.4,4733.3,4.16749747]
[1759781415181,0.20708035,4733.4,4733.3,4.16749747]
[1759781416475,0.75548035,4733.4,4733.3,0.00249747]
[1759781416786,0.75548035,4733.4,4733.3,0.95969747]
[1759781417083,0.53688035,4733.4,4733.3,0.95969747]
[1759781417282,0.75548035,4733.4,4733.3,0.95969747]
[1759781417482,0.75548035,4733.4,4733.3,0.74769747]
[1759781417683,0.75548035,4733.4,4733.3,0.95969747]
[1759781418075,0.75548035,4733.4,4733.3,0.74769747]
[1759781418381,0.75548035,4733.4,4733.3,0.64849747]
[1759781419589,1.13556035,4733.4,4733.3,0.00249747]
[1759781419781,0.75548035,4733.4,4733.3,0.21449747]
[1759781420487,0.75548035,4733.4,4733.3,0.00249747]
[1759781420676,0.75548035,4733.4,4733.3,0.21449747]
[1759781421974,0.4094,4732.6,4732.5,0.38015]
[1759781422285,0.4094,4732.6,4732.0,35.34865147]
[1759781422286,0.4094,4732.4,4732.3,0.38016]
[1759781422479,0.1286,4732.0,4731.9,3.2078]
[1759781422680,0.86,4732.0,4731.9,0.8025]
[1759781422879,0.86,4732.0,4731.9,0.80405309]
[1759781423285,0.86,4732.0,4731.9,0.21185309]
[1759781423485,0.86,4732.0,4731.9,0.42385309]
[1759781423683,0.86,4732.0,4731.9,0.21355309]
[1759781424589,4.0678,4732.0,4731.9,0.00155309]
[1759781424792,4.0678,4732.0,4731.9,0.21355309]
[1759781425083,0.7314,4732.0,4731.9,0.95855309]
[1759781425582,4.0678,4732.0,4731.9,0.00155309]
[1759781425787,4.0678,4732.0,4731.9,0.21355309]
[1759781427289,4.0678,4732.0,4731.9,0.00155309]
[1759781427589,4.0678,4732.0,4731.9,0.21355309]
[1759781428884,4.0678,4732.0,4731.9,0.42385309]
[1759781429694,4.0678,4732.0,4731.9,0.00155309]
[1759781429885,4.0678,4732.0,4731.9,0.21355309]
[1759781430087,4.0678,4732.0,4731.9,0.42385309]
[1759781430391,4.0678,4732.0,4731.9,0.95855309]
[1759781430993,4.0678,4732.0,4731.9,0.00155309]
[1759781431193,4.0678,4732.0,4731.9,0.21355309]
[1759781432688,4.0678,4732.0,4731.9,0.00155309]
[1759781432898,4.0678,4732.0,4731.9,0.21355309]
[1759781433093,4.0678,4732.0,4731.9,0.00155309]
[1759781433301,4.0678,4732.0,4731.9,0.21355309]
[1759781436103,4.0678,4732.0,4731.9,0.59375309]
[1759781436490,0.2147,4730.9,4730.8,1.12227147]
[1759781436695,0.7201,4730.9,4730.8,0.81139]
[1759781436996,0.7201,4730.9,4730.8,1.34669]
[1759781437599,0.7201,4730.9,4730.8,1.34859933]
[1759781437799,0.7201,4730.9,4730.8,1.13659933]
[1759781438000,0.7201,4730.9,4730.8,33.77829933]
[1759781438603,0.7201,4730.9,4730.8,0.21390933]
[1759781438798,0.7201,4730.9,4730.8,0.00190933]
[1759781438999,0.7201,4730.9,4730.8,0.21390933]
[1759781440794,0.7201,4730.9,4730.8,0.00190933]
[1759781440995,0.7201,4730.9,4730.8,0.21390933]
[1759781441400,0.7201,4730.9,4730.8,0.00190933]
[1759781441602,0.7201,4730.9,4730.8,0.21390933]
[1759781442098,0.3064,4731.5,4730.8,0.96830933]
[1759781442304,0.7201,4731.8,4731.7,0.7544]
[1759781442503,0.7201,4731.8,4731.7,0.9664]
[1759781442904,0.4137,4731.8,4731.7,0.9664]
[1759781443103,3.7289,4732.0,4731.9,0.7544]
[1759781443304,3.9279,4732.0,4731.9,0.7544]
[1759781444896,0.95029,4733.1,4732.8,0.7544]
[1759781444897,0.5211,4732.9,4732.8,0.7544]
[1759781445207,0.5211,4732.9,4732.8,0.9664]
[1759781446603,0.2147,4732.9,4732.8,0.9664]
[1759781448112,0.2201,4733.2,4733.1,1.10071]
[1759781448408,0.22238035,4733.4,4733.3,1.10069]
[1759781448608,0.54818035,4733.4,4733.3,1.31269]
[1759781449103,0.22238035,4733.4,4733.3,1.31269]
[1759781451308,0.00228035,4733.4,4733.3,1.31269]
[1759781452406,0.94987,4735.1,4734.4,0.38]
[1759781452407,0.35,4734.5,4734.4,0.38]
[1759781452606,0.4266,4734.5,4734.4,1.3126]
[1759781453014,0.7524,4734.5,4734.4,1.3126]
[1759781453404,0.75501804,4734.5,4734.4,1.31410071]
[1759781453606,0.87531804,4734.5,4734.4,0.00150071]
[1759781453807,0.87531804,4734.5,4734.4,0.21350071]
[1759781454712,0.87531804,4734.5,4734.4,0.00150071]
[1759781455012,0.87531804,4734.5,4734.4,0.21350071]
[1759781456017,0.87631804,4734.5,4734.4,0.21350071]
[1759781458820,0.87631804,4734.5,4734.4,0.00150071]
[1759781459013,0.87631804,4734.5,4734.4,0.21350071]
[1759781461319,1.25630804,4734.5,4734.4,0.21350071]
[1759781464016,1.25630804,4734.5,4734.4,0.00150071]
[1759781464224,1.25630804,4734.5,4734.4,0.21350071]
[1759781466126,1.25630804,4734.5,4734.4,0.00150071]
[1759781466422,1.25630804,4734.5,4734.4,0.21350071]
[1759781466914,1.25630804,4734.5,4734.4,0.59350071]
[1759781467316,1.25630804,4734.5,4734.4,1.31410071]
[1759781467519,0.75601804,4734.5,4734.4,1.31410071]
[1759781467820,0.92950804,4734.5,4734.4,1.31410071]
[1759781469424,0.00361804,4734.5,4734.4,1.31410071]
[1759781469617,0.00361804,4734.5,4734.4,1.10210071]
[1759781469815,0.75601804,4734.5,4734.4,1.31410071]
[1759781471118,0.75601804,4734.5,4734.4,1.10210071]
[1759781471313,0.75601804,4734.5,4734.4,1.31410071]
[1759781472723,1.25630804,4734.5,4734.4,0.50600071]
[1759781472918,1.25630804,4734.5,4734.4,0.21350071]
[1759781476322,0.80666,4733.8,4733.7,0.38006]
[1759781476526,1.13247,4733.6,4733.5,0.58337]
[1759781476826,1.13247,4733.6,4733.5,0.79537]
[1759781477329,0.7524,4733.6,4733.5,0.7970513]
[1759781477630,0.7524,4733.6,4733.5,1.0982513]
[1759781477824,0.7524,4733.6,4733.5,1.3143513]
[1759781478823,0.79529,4733.3,4733.2,1.12227147]
[1759781479024,0.1284,4731.5,4731.4,1.50554657]
[1759781479224,0.69447848,4731.5,4731.4,0.4286]
[1759781479424,0.69447848,4731.5,4731.4,0.7284]
[1759781479726,0.69447848,4731.5,4731.4,0.9467]
[1759781479929,0.69447848,4731.5,4731.4,4.15665798]
[1759781480129,0.95022,4733.4,4731.4,4.15665798]
[1759781480130,3.4203,4732.8,4732.7,0.4349]
[1759781480431,3.4203,4732.8,4732.7,0.9467]
[1759781480628,3.623,4732.8,4732.7,0.9467]
[1759781480830,3.9261,4732.8,4732.7,0.9467]
[1759781484329,3.9261,4732.8,4732.7,0.212]
[1759781484931,3.9261,4732.8,4732.7,0.4286]
[1759781485432,3.9261,4732.8,4732.7,0.212]
[1759781486233,0.59266,4732.4,4732.3,0.5164]
[1759781486538,1.09846,4732.4,4732.3,0.7284]
[1759781489033,0.7183,4732.1,4732.0,0.2166]
[1759781489228,3.2078,4732.2,4731.8,0.7347]
[1759781489429,3.7136,4732.2,4731.7,0.38022]
[1759781489632,0.7183,4731.8,4731.7,1.11492]
[1759781489833,0.7183,4731.8,4731.7,1.32692]
[1759781490031,0.7183,4731.8,4731.7,0.7347]
[1759781490539,0.7183,4731.8,4731.7,0.9467]
[1759781490739,0.7183,4731.8,4731.7,0.7347]
[1759781491238,0.7183,4731.8,4731.7,0.9467]
[1759781492138,0.7183,4731.8,4731.7,0.7347]
[1759781492328,0.7183,4731.8,4731.7,0.9467]
[1759781494437,0.7183,4731.8,4731.7,0.7347]
[1759781494639,0.7183,4731.8,4731.7,0.9467]
[1759781495442,0.7183,4731.8,4731.7,0.7347]
[1759781495743,0.7183,4731.8,4731.7,0.9467]
[1759781497438,0.81803,4731.5,4731.4,0.54035798]
[1759781497640,4.32733,4731.5,4731.4,0.54035798]
[1759781497842,4.45493,4731.5,4731.4,0.42295798]
[1759781498143,4.45493,4731.5,4731.4,0.21415798]
[1759781499143,4.45493,4731.5,4731.4,0.59439798]
[1759781499342,4.45493,4731.5,4731.4,0.21415798]
[1759781502050,4.45493,4731.5,4731.4,0.00215798]
[1759781502242,4.45493,4731.5,4731.4,0.21415798]
[1759781503542,4.45493,4731.5,4731.4,0.00215798]
[1759781503738,4.45493,4731.5,4731.4,0.21415798]
[1759781504137,4.45493,4731.5,4731.4,0.00215798]
[1759781504541,0.60093,4730.4,4730.3,0.2088]
[1759781504748,0.4378,4730.2,4730.1,0.5382]
[1759781504942,0.4378,4730.2,4729.9,0.38036]
[1759781504943,1.11967,4729.9,4729.8,0.5382]
[1759781505145,4.32747,4729.9,4729.8,0.7502]
[1759781505543,4.32943629,4729.9,4729.8,0.75184776]
[1759781506142,4.32943629,4729.9,4729.8,0.00164776]
[1759781506943,4.32943629,4729.9,4729.8,0.17764776]
[1759781507645,4.32943629,4729.9,4729.8,0.00164776]
[1759781507847,4.32943629,4729.9,4728.9,0.3294]
[1759781507848,0.38043,4729.0,4728.9,0.3294]
[1759781508039,4.34373,4729.0,4728.9,0.7575]
[1759781508346,4.0828,4729.0,4728.9,0.4281]
[1759781508645,3.645,4729.0,4728.6,0.3095]
[1759781508842,0.7272,4728.7,4728.6,0.52762243]
[1759781509047,0.7272,4728.7,4728.6,0.73962243]
[1759781509352,0.7272,4728.7,4728.6,0.52762243]
[1759781509552,0.7272,4728.7,4728.6,0.21402243]
[1759781509846,0.4095,4728.7,4728.6,0.95732243]
[1759781510147,0.4095,4728.7,4728.6,0.74532243]
[1759781510345,0.7272,4728.7,4728.6,0.74532243]
[1759781510547,0.7272,4728.7,4728.6,0.95732243]
[1759781511148,0.7272,4728.7,4728.6,0.74532243]
[1759781511451,0.7272,4728.7,4728.6,0.00202243]
[1759781511651,0.7272,4728.7,4728.6,0.21402243]
[1759781512148,0.7272,4728.7,4728.6,0.52762243]
[1759781512346,0.7272,4728.7,4728.6,0.73962243]
[1759781513254,0.7272,4728.7,4728.6,0.00202243]
[1759781513545,0.7272,4728.7,4728.6,0.21402243]
[1759781513751,0.7272,4728.7,4728.6,0.00202243]
[1759781513948,3.43796416,4728.7,4728.6,0.00202243]
[1759781514452,0.209,4727.0,4726.9,0.5256]
[1759781514750,0.7272,4727.0,4726.9,0.7376]
[1759781514947,0.7272,4727.0,4726.9,0.9553]
[1759781515453,0.7272,4727.0,4726.9,0.95684853]
[1759781517050,0.7272,4727.0,4726.9,0.74484853]
[1759781517346,0.2005,4726.7,4726.6,0.4338]
[1759781517551,3.4083,4726.7,4726.6,0.7433]
[1759781518153,3.5255,4727.2,4726.6,0.4338]
[1759781518353,4.31558,4727.2,4727.1,0.2161]
[1759781518654,4.31558,4727.2,4727.1,0.4281]
[1759781518851,1.1078,4727.0,4726.9,0.5256]
[1759781519259,1.1078,4727.0,4726.6,0.21806202]
[1759781519260,1.10782,4726.7,4726.6,0.21806202]
[1759781519456,1.10782,4726.7,4726.6,0.43006202]
[1759781519457,4.31562,4726.7,4726.6,0.43006202]
[1759781519659,4.31562,4726.7,4726.6,0.73956202]
[1759781519952,7.06755224,4726.7,4726.6,0.00196202]
[1759781520159,7.06755224,4726.7,4724.6,3.2078]
[1759781520160,0.4095,4726.5,4726.4,0.7433]
[1759781520356,3.78892,4726.7,4726.6,0.4338]
[1759781520565,3.78892,4726.7,4726.6,0.7433]
[1759781520755,3.99792,4726.7,4726.6,0.7433]